bitfinex-derivatives/quotes_ETHF0:USTF0_20240922
["timestamp","ask_amount","ask_price","bid_price","bid_amount"]
[1727033941779,0.38887,2571.4,2571.3,2.89108621]
[1727033942175,3.38681097,2571.4,2571.3,1.02078282]
[1727033942377,3.38681097,2571.4,2571.2,1.53072627]
[1727033942378,0.38888,2571.3,2571.2,1.02078282]
[1727033942573,0.38888,2571.3,2571.1,0.38891]
[1727033942574,4.27056512,2571.3,2571.1,1.40969282]
[1727033942773,1.8998117,2571.2,2571.1,1.40969282]
[1727033943670,2.0062749,2571.2,2571.1,1.40969282]
[1727033944478,0.4877632,2571.2,2571.1,1.40969282]
[1727033945576,0.4877632,2571.2,2571.1,1.81589282]
[1727033946279,0.1064632,2571.2,2571.1,1.81589282]
[1727033946470,0.1064632,2571.2,2571.1,4.19492069]
[1727033947078,0.1064632,2571.2,2571.1,5.16721069]
[1727033947271,0.1064632,2571.2,2571.1,7.13803106]
[1727033947477,0.1064632,2571.2,2571.1,4.12309115]
[1727033947687,0.1064632,2571.2,2571.1,9.6598767]
[1727033947982,1.5185117,2571.7,2571.6,0.38884]
[1727033948182,1.9022117,2571.8,2571.6,0.38884]
[1727033948487,1.5185117,2571.7,2571.6,0.38884]
[1727033948685,1.9022117,2571.8,2571.6,0.38884]
[1727033948886,1.5185117,2571.7,2571.5,2.38835489]
[1727033949572,1.90148673,2571.8,2571.7,0.38882]
[1727033953783,1.90148673,2571.8,2571.5,1.40835489]
[1727033953984,1.51778673,2571.7,2571.5,1.01951489]
[1727033954285,1.51778673,2571.7,2571.6,0.38883]
[1727033954487,1.51778673,2571.7,2571.5,1.40835489]
[1727033954686,1.51778673,2571.7,2571.6,0.38884]
[1727033954889,1.51778673,2571.7,2571.5,1.40835489]
[1727033955082,1.51778673,2571.7,2571.6,0.38884]
[1727033960486,1.51778673,2571.7,2571.4,1.99951489]
[1727033960783,1.91308673,2571.6,2571.4,1.40837489]
[1727033961087,3.6135,2571.5,2571.4,1.40837489]
[1727033961786,0.4057,2571.5,2571.4,1.40837489]
[1727033963391,0.4057,2571.5,2571.4,2.38837489]
[1727033964087,0.7959,2571.5,2571.4,2.38837489]
[1727033969898,0.7959,2571.5,2571.4,4.25687978]
[1727033970101,0.7959,2571.5,2571.4,2.38837489]
[1727033970899,0.7959,2571.5,2571.4,1.99951489]
[1727033971097,0.7959,2571.5,2571.4,2.38838489]
[1727033977293,0.3902,2571.5,2571.4,3.23741077]
[1727033977490,3.2078,2571.6,2571.5,0.38885]
[1727033977799,3.2078,2571.6,2571.5,4.25692536]
[1727033978197,3.2078,2571.6,2571.5,4.2569249]
[1727033978598,3.2078,2571.6,2571.5,4.25692466]
[1727033978793,3.2078,2571.6,2571.5,4.25691661]
[1727033979001,3.2078,2571.6,2571.5,3.64907985]
[1727033979203,3.2078,2571.6,2571.5,4.25691615]
[1727033980001,1.51778673,2571.7,2571.6,0.38884]
[1727033980410,1.51778673,2571.7,2571.6,0.76394]
[1727033982808,1.51778673,2571.7,2571.6,1.15834]
[1727033984603,1.51778673,2571.8,2571.6,5.6778988]
[1727033984819,4.72558673,2571.9,2571.8,0.38881]
[1727033985108,3.2078,2571.9,2571.8,0.38881]
[1727033987214,1.51778673,2572.0,2571.9,0.38879]
[1727033987407,1.51778673,2572.0,2571.9,1.36879]
[1727033988406,2.40052192,2572.1,2572.0,0.38878]
[1727033988407,2.02472192,2572.1,2572.0,0.38878]
[1727033988601,2.53065418,2572.5,2572.0,0.38878]
[1727033988602,1.51778673,2572.4,2572.0,9.62659063]
[1727033988806,1.92478673,2572.6,2572.3,1.99894253]
[1727033989108,1.92478673,2572.6,2572.5,1.3687]
[1727033989109,1.51778673,2572.6,2572.5,1.3687]
[1727033989706,1.51778673,2572.6,2572.5,2.1137]
[1727033990503,1.51778673,2572.7,2572.5,1.725]
[1727033991214,1.51778673,2572.7,2572.5,2.1137]
[1727033992501,1.51778673,2572.7,2572.5,1.725]
[1727033992716,0.407,2572.8,2572.5,1.725]
[1727033992914,1.91338673,2572.9,2572.8,0.38866]
[1727033993113,0.3956,2572.9,2572.8,0.38866]
[1727033993305,0.3956,2572.9,2572.7,1.36866]
[1727033993508,0.3956,2572.9,2572.7,0.98]
[1727033993808,0.3956,2572.9,2572.7,1.36867]
[1727033994008,4.72558673,2573.0,2572.8,0.38866]
[1727033994211,3.2078,2573.0,2572.7,0.98]
[1727033994402,2.67918673,2573.1,2572.8,0.38866]
[1727033994611,3.2078,2573.0,2572.8,0.38866]
[1727033994810,3.2078,2573.0,2572.9,0.4008]
[1727033995811,3.2078,2573.0,2572.7,1.36866]
[1727033996720,1.51778673,2572.9,2572.7,1.36866]
[1727033997919,4.72558673,2573.0,2572.7,1.36866]
[1727033998216,1.51778673,2572.9,2572.7,1.36866]
[1727033998422,4.72558673,2573.0,2572.7,1.36866]
[1727034001216,1.51778673,2573.0,2572.7,0.98]
[1727034001412,1.1614,2573.1,2572.7,0.98]
[1727034001413,3.06780673,2573.1,2572.7,1.36866]
[1727034001613,2.67918673,2573.1,2572.7,0.98]
[1727034001815,2.67918673,2573.1,2572.8,0.38865]
[1727034002421,3.06779673,2573.1,2572.8,0.38865]
[1727034002719,3.2078,2573.0,2572.8,0.38865]
[1727034003420,2.67918673,2573.1,2572.9,0.38864]
[1727034004520,2.67918673,2573.1,2573.0,0.38863]
[1727034004727,2.67918673,2573.1,2573.0,1.36863]
[1727034004728,1.1614,2573.1,2573.0,1.36863]
[1727034005718,0.7549,2573.1,2573.0,1.36863]
[1727034005914,0.3744,2573.5,2573.2,0.3886]
[1727034006117,0.7823,2573.4,2573.2,0.3886]
[1727034006320,0.7823,2573.4,2573.3,0.98]
[1727034006517,0.3793,2573.4,2573.3,0.98]
[1727034006724,1.17087,2573.4,2573.2,0.98]
[1727034006914,0.38859,2573.3,2573.0,0.98]
[1727034007227,4.37868,2573.4,2573.0,0.98]
[1727034007521,4.37868,2573.4,2573.1,0.38861]
[1727034007714,4.37868,2573.4,2573.0,0.98]
[1727034007910,4.37868,2573.4,2573.0,1.36861]
[1727034008117,0.38859,2573.3,2573.0,1.36861]
[1727034008312,3.2078,2573.1,2572.9,0.38864]
[1727034008519,0.403,2573.0,2572.9,0.38864]
[1727034008720,1.1862,2573.0,2572.9,0.38864]
[1727034009425,1.1862,2573.0,2572.9,0.77654]
[1727034012624,1.1862,2573.0,2572.8,1.36865]
[1727034013829,1.1862,2573.0,2572.9,0.38864]
[1727034014125,1.1862,2573.0,2572.8,1.36865]
[1727034015623,3.2078,2572.9,2572.7,0.3913]
[1727034015929,3.2078,2572.9,2572.7,0.77997]
[1727034016327,3.2078,2572.9,2572.7,1.75997]
[1727034016733,3.2078,2572.9,2572.5,0.387]
[1727034017031,3.2078,2572.9,2572.5,0.3887]
[1727034017032,0.38866,2572.8,2572.5,0.3887]
[1727034017222,3.2078,2572.6,2572.4,0.38871]
[1727034017423,3.2078,2572.6,2572.3,0.3748]
[1727034017424,0.7786,2572.5,2572.3,1.74353]
[1727034017623,0.7786,2572.5,2572.4,0.38872]
[1727034017624,1.1766,2572.5,2572.4,0.38872]
[1727034017833,1.1766,2572.5,2572.4,1.36872]
[1727034018428,1.1766,2572.5,2572.4,0.98]
[1727034018635,1.1766,2572.5,2572.4,1.36872]
[1727034019531,1.1766,2572.5,2572.4,0.98]
[1727034021927,1.1766,2572.5,2572.1,0.7455]
[1727034021928,5.0638,2572.5,2572.1,0.98]
[1727034022135,3.2078,2572.3,2572.1,1.36876]
[1727034022631,0.3971,2572.2,2572.1,1.36876]
[1727034023023,0.7786,2572.5,2572.2,0.38874]
[1727034023229,0.7786,2572.5,2572.4,0.98]
[1727034023629,0.7786,2572.5,2572.4,1.36872]
[1727034023630,0.3987,2572.5,2572.4,1.36872]
[1727034023827,0.3987,2572.5,2572.4,1.75592]
[1727034025441,0.3987,2572.5,2572.4,1.3672]
[1727034025631,0.3987,2572.5,2572.3,1.3849]
[1727034025832,0.7671,2572.5,2572.3,1.3849]
[1727034026030,0.7671,2572.5,2572.3,0.98]
[1727034026234,1.1558,2572.5,2572.3,0.98]
[1727034027431,0.7671,2572.5,2572.3,0.98]
[1727034031137,3.2078,2572.4,2572.3,0.98]
[1727034031636,0.3971,2572.6,2572.3,1.36873]
[1727034031840,0.3971,2572.6,2572.4,1.3499]
[1727034032037,0.3971,2572.6,2572.4,1.75]
[1727034033936,1.51778673,2572.5,2572.4,1.75]
[1727034038630,1.51619672,2572.5,2572.4,1.75]
[1727034041933,3.6049,2572.6,2572.4,1.75]
[1727034042148,3.99359,2572.6,2572.4,1.75]
[1727034042837,3.6049,2572.6,2572.4,2.13871]
[1727034043035,0.3812,2572.7,2572.6,0.38869]
[1727034043240,1.51619672,2572.8,2572.6,0.38869]
[1727034043539,2.29049672,2572.9,2572.7,0.38867]
[1727034043739,5.49829672,2572.9,2572.7,0.3693]
[1727034044052,4.37074,2572.9,2572.7,0.3693]
[1727034044238,1.16294,2572.9,2572.7,0.3693]
[1727034044439,5.88693672,2572.9,2572.7,0.3693]
[1727034045648,5.88693672,2572.9,2572.6,1.36868]
[1727034046646,0.38866,2572.8,2572.6,1.36868]
[1727034046849,0.38866,2572.8,2572.5,1.36869]
[1727034047043,0.38867,2572.7,2572.5,1.36869]
[1727034047250,0.3809,2572.6,2572.5,1.36869]
[1727034047545,0.7486,2572.6,2572.5,1.36869]
[1727034048451,0.3677,2572.6,2572.5,1.36869]
[1727034049950,0.77526,2572.8,2572.6,0.38869]
[1727034049951,0.3866,2572.8,2572.6,0.38869]
[1727034050149,0.3866,2572.8,2572.6,1.74899]
[1727034050353,0.3694,2572.7,2572.6,2.12859]
[1727034050548,0.3694,2572.7,2572.6,1.14859]
[1727034052445,0.3694,2572.7,2572.6,0.7599]
[1727034052742,0.3694,2572.7,2572.6,1.14859]
[1727034057449,0.3694,2572.7,2572.6,2.12859]
[1727034059256,2.39412192,2572.7,2572.6,2.12859]
[1727034061158,2.39412192,2572.7,2572.6,0.3796]
[1727034061352,6.10785418,2572.7,2572.4,0.7834]
[1727034061560,2.02536344,2572.6,2572.4,0.7834]
[1727034061763,2.02536344,2572.6,2572.5,0.3887]
[1727034061954,5.91256344,2572.6,2572.3,0.3751]
[1727034062256,5.91256344,2572.6,2572.3,0.76383]
[1727034062257,2.02536344,2572.5,2572.3,0.76383]
[1727034062655,0.37,2572.4,2572.3,0.76383]
[1727034062849,0.37,2572.4,2572.3,1.37148919]
[1727034063464,2.78409344,2572.4,2572.2,0.3947]
[1727034063761,2.78409344,2572.4,2572.1,1.99894253]
[1727034063762,5.62306344,2572.3,2572.1,1.36876]
[1727034063957,5.11716941,2572.3,2572.1,1.99894253]
[1727034064959,1.90936941,2572.3,2572.1,1.99894253]
[1727034065158,0.3899,2572.3,2572.2,1.01894253]
[1727034065464,1.90936941,2572.3,2572.1,1.99894253]
[1727034070263,1.90936941,2572.3,2572.1,2.38770253]
[1727034071771,1.90936941,2572.3,2572.1,1.99894253]
[1727034071970,1.90936941,2572.3,2572.0,1.99894253]
[1727034071971,0.38876,2572.1,2572.0,1.99894253]
[1727034072266,1.90822941,2572.1,2572.0,0.98]
[1727034072564,1.92686941,2572.1,2572.0,1.36878]
[1727034072763,0.4074,2572.1,2572.0,1.36878]
[1727034073666,1.51946941,2572.2,2572.1,0.38876]
[1727034073964,1.51946941,2572.3,2572.1,1.36876]
[1727034074164,1.51946941,2572.3,2572.1,1.76736]
[1727034074763,1.51946941,2572.3,2572.1,1.3786]
[1727034075475,1.90819941,2572.3,2572.1,1.3786]
[1727034076670,1.51946941,2572.3,2572.1,1.3786]
[1727034078970,1.90819941,2572.3,2572.1,1.3786]
[1727034079173,0.38873,2572.3,2572.1,1.3786]
[1727034083281,1.90819941,2572.3,2572.1,1.3786]
[1727034084065,5.52516941,2572.4,2572.2,0.38875]
[1727034084366,5.91388941,2572.4,2572.2,0.38875]
[1727034085176,5.91388941,2572.4,2572.1,1.76735]
[1727034085376,5.91388941,2572.4,2572.2,0.38875]
[1727034087078,1.51946941,2572.3,2572.2,0.38875]
[1727034089781,1.51946941,2572.3,2572.1,1.76735]
[1727034091080,1.51946941,2572.3,2572.1,1.3786]
[1727034091280,1.51946941,2572.3,2572.1,1.76736]
[1727034101292,1.51946941,2572.3,2572.2,0.38875]
[1727034101580,1.51946941,2572.3,2572.1,1.76736]
[1727034102490,1.51946941,2572.3,2572.1,2.78630253]
[1727034102882,1.51946941,2572.3,2572.1,1.76736]
[1727034103493,1.51946941,2572.3,2572.1,2.78630253]
[1727034104395,1.51946941,2572.2,2572.1,2.78630253]
[1727034105987,1.51946941,2572.2,2572.1,4.65504883]
[1727034106489,1.51946941,2572.2,2572.1,4.65507863]
[1727034107092,1.51946941,2572.2,2572.1,2.78630253]
[1727034107286,1.90821941,2572.2,2572.1,2.8881106]
[1727034107487,2.79681344,2572.2,2572.1,1.01894253]
[1727034108300,2.40806344,2572.2,2572.1,1.01894253]
[1727034108486,2.40806344,2572.2,2572.1,1.40770253]
[1727034108888,2.40806344,2572.2,2572.1,1.01894253]
[1727034109187,0.3827,2572.2,2572.1,1.01894253]
[1727034109386,3.30210418,2572.2,2572.0,1.99894253]
[1727034109596,2.41027243,2572.1,2572.0,1.99894253]
[1727034109799,2.41027243,2572.1,2572.0,3.86858191]
[1727034110095,2.41027243,2572.1,2572.0,2.60667893]
[1727034110687,2.41027243,2572.1,2572.0,3.86853122]
[1727034110992,2.41027243,2572.1,2572.0,3.26236598]
[1727034111194,2.41027243,2572.1,2572.0,4.35626705]
[1727034111496,2.41027243,2572.1,2572.0,3.8700888]
[1727034111698,2.41027243,2572.1,2572.0,3.72453544]
[1727034111993,2.41027243,2572.1,2572.0,4.74504313]
[1727034112191,2.41027243,2572.1,2572.0,3.8700712]
[1727034112491,2.41027243,2572.1,2572.0,3.87007799]
[1727034114298,2.41027243,2572.1,2572.0,3.26235517]
[1727034114485,2.41027243,2572.1,2572.0,3.87007845]
[1727034114886,2.41027243,2572.1,2572.0,3.26235517]
[1727034115089,2.41027243,2572.1,2572.0,3.87008052]
[1727034116999,2.41027243,2572.1,2572.0,3.87009763]
[1727034117301,0.3826,2572.1,2572.0,4.37885548]
[1727034118797,0.77136,2572.1,2572.0,3.39885548]
[1727034119005,2.79903243,2572.1,2572.0,2.2824291]
[1727034119198,2.79903243,2572.1,2572.0,1.0205713]
[1727034119404,0.38878,2572.0,2571.9,1.0205713]
[1727034119698,2.79372733,2572.0,2571.9,1.0205713]
[1727034120997,0.38879,2571.9,2571.8,1.0205713]
[1727034121200,0.38879,2571.9,2571.7,1.52927233]
[1727034121201,0.38881,2571.8,2571.7,1.02064322]
[1727034121397,0.38881,2571.8,2571.6,1.02064322]
[1727034121398,0.38882,2571.7,2571.6,1.02064322]
[1727034121705,0.38882,2571.7,2571.3,23.49690978]
[1727034121706,0.38884,2571.6,2571.4,1.02064322]
[1727034122011,1.91375739,2571.5,2571.4,1.02064322]
[1727034122199,2.28775739,2571.5,2571.4,1.40951322]
[1727034122396,0.7681,2571.5,2571.4,1.40951322]
[1727034123297,0.7681,2571.5,2571.4,2.01629264]
[1727034125300,0.7681,2571.5,2571.4,0.99671485]
[1727034128209,1.51965739,2572.0,2571.8,0.3888]
[1727034128412,1.90275739,2572.0,2571.9,1.3817]
[1727034130206,0.3831,2572.0,2571.9,1.3817]
[1727034132507,0.3831,2572.0,2571.6,1.40723565]
[1727034132508,0.77189,2572.0,2571.6,1.40723565]
[1727034132712,2.29154739,2572.0,2571.6,1.75523]
[1727034133810,2.29154739,2572.0,2571.7,0.38882]
[1727034134412,2.29154739,2572.0,2571.6,1.75523]
[1727034135217,2.29154739,2572.0,2571.7,0.38882]
[1727034135912,1.51965739,2571.9,2571.7,0.38882]
[1727034136105,1.51965739,2571.9,2571.6,1.3664]
[1727034136106,0.3888,2571.9,2571.6,1.3664]
[1727034136307,0.3888,2571.9,2571.6,1.75523]
[1727034136308,0.3842,2571.8,2571.6,1.75523]
[1727034136514,0.3869,2571.7,2571.6,1.3664]
[1727034136704,1.15682,2571.7,2571.6,0.3864]
[1727034136904,0.768,2571.7,2571.5,2.75935565]
[1727034137110,0.768,2571.7,2571.5,1.74095]
[1727034137319,1.15682,2571.7,2571.5,1.74095]
[1727034137516,1.15682,2571.7,2571.4,1.79336565]
[1727034137814,1.15682,2571.7,2571.4,0.77496]
[1727034138021,0.38884,2571.6,2571.4,0.77496]
[1727034138805,1.15683,2571.7,2571.4,0.77496]
[1727034139213,0.768,2571.7,2571.5,0.98]
[1727034139413,1.15683,2571.7,2571.5,0.98]
[1727034142017,1.15683,2571.7,2571.5,1.36885]
[1727034143119,0.768,2571.7,2571.6,0.38884]
[1727034143313,5.50047739,2571.8,2571.7,0.38882]
[1727034143314,3.2078,2571.8,2571.7,0.38882]
[1727034143510,3.2078,2571.8,2571.7,1.36882]
[1727034143716,1.90495739,2571.9,2571.7,1.36882]
[1727034144012,0.3853,2571.9,2571.7,1.75352]
[1727034144421,1.90495739,2571.9,2571.7,1.75352]
[1727034144725,1.90495739,2571.9,2571.7,1.3647]
[1727034145024,2.29374739,2571.9,2571.7,1.3647]
[1727034147624,0.77409,2571.9,2571.7,1.3647]
[1727034147827,1.90495739,2571.9,2571.7,1.75352]
[1727034148022,1.90495739,2571.9,2571.7,1.3647]
[1727034148421,3.888,2571.8,2571.5,1.40725565]
[1727034148630,3.888,2571.8,2571.6,0.38884]
[1727034148631,0.3721,2571.8,2571.6,0.38884]
[1727034150824,0.3721,2571.8,2571.7,0.38882]
[1727034151023,4.2609,2571.8,2571.7,0.38882]
[1727034151521,4.64971,2571.8,2571.4,1.99840565]
[1727034151720,0.76091,2571.8,2571.5,0.38885]
[1727034152332,0.76091,2571.8,2571.6,0.38884]
[1727034152522,2.28056739,2571.8,2571.6,0.38884]
[1727034154128,1.89175739,2571.8,2571.5,0.38885]
[1727034154316,0.38883,2571.7,2571.5,0.38885]
[1727034154626,0.3884,2571.6,2571.5,0.38885]
[1727034154924,0.7938,2571.6,2571.5,0.38885]
[1727034160127,0.7938,2571.6,2571.4,1.76626]
[1727034160334,2.70229739,2571.6,2571.4,1.3774]
[1727034160540,0.38885,2571.5,2571.3,22.05941565]
[1727034161628,3.59665,2571.5,2571.3,22.05941565]
[1727034162027,0.38885,2571.5,2571.3,22.05941565]
[1727034162323,5.11630739,2571.5,2571.3,22.05941565]
[1727034164033,2.70230739,2571.6,2571.3,23.42828565]
[1727034164232,1.51965739,2571.5,2571.4,0.38887]
[1727034164433,0.38885,2571.5,2571.4,1.01840565]
[1727034164839,1.90850739,2571.5,2571.3,23.42828565]
[1727034165140,0.38887,2571.4,2571.3,22.05941565]
[1727034165336,1.51965739,2571.4,2571.3,22.05941565]
[1727034165536,1.51965739,2571.5,2571.3,23.42829565]
[1727034166534,1.90851739,2571.5,2571.3,23.03941565]
[1727034167742,1.51965739,2571.5,2571.3,23.42829565]
[1727034167947,1.90850739,2571.5,2571.3,23.03941565]
[1727034170340,1.90850739,2571.5,2571.3,22.02101]
[1727034170751,1.90850739,2571.5,2571.3,23.03941565]
[1727034171050,5.11630739,2571.5,2571.3,23.03941565]
[1727034171465,5.11630739,2571.5,2571.3,22.02101]
[1727034173039,1.90850739,2571.5,2571.3,22.02101]
[1727034173245,5.11630739,2571.5,2571.3,22.02101]
[1727034175946,4.72745739,2571.5,2571.3,22.40988]
[1727034176158,1.90850739,2571.5,2571.3,23.42828565]
[1727034176353,2.70230739,2571.6,2571.3,23.42828565]
[1727034176558,1.51965739,2571.5,2571.3,23.42828565]
[1727034179461,1.51965739,2571.5,2571.4,0.38887]
[1727034180154,1.51965739,2571.5,2571.3,23.42828565]
[1727034182449,1.51965739,2571.5,2571.3,23.03941565]
[1727034182657,1.51965739,2571.5,2571.4,1.01840565]
[1727034182954,1.51965739,2571.5,2571.3,23.42829565]
[1727034183156,1.51965739,2571.5,2571.4,1.01840565]
[1727034183355,1.51965739,2571.5,2571.4,1.40727565]
[1727034183559,1.51965739,2571.6,2571.5,0.38885]
[1727034183759,1.51965739,2571.7,2571.6,0.38884]
[1727034184061,1.51965739,2571.7,2571.6,6.27741619]
[1727034184258,2.02734183,2571.9,2571.7,0.38882]
[1727034184458,2.02734183,2571.9,2571.8,0.38881]
[1727034184758,2.02734183,2571.9,2571.7,0.78181]
[1727034185065,1.52046147,2571.8,2571.7,0.78181]
[1727034185455,1.52046147,2571.9,2571.7,1.80158619]
[1727034185655,1.52046147,2571.9,2571.7,1.41277619]
[1727034185855,1.52046147,2571.8,2571.7,1.41277619]
[1727034186857,1.52046147,2571.8,2571.7,1.80159619]
[1727034187365,1.52046147,2571.8,2571.7,0.78182]
[1727034187759,1.52046147,2571.8,2571.7,0.393]
[1727034189061,1.52046147,2571.8,2571.7,0.78182]
[1727034189268,1.52046147,2571.8,2571.7,0.393]
[1727034189763,1.52046147,2571.8,2571.7,0.78182]
[1727034190354,1.52046147,2571.8,2571.7,0.393]
[1727034190953,1.90927147,2571.8,2571.7,0.393]
[1727034191154,1.52046147,2571.8,2571.7,0.393]
[1727034191366,1.52046147,2571.8,2571.7,0.78182]
[1727034191664,1.52050272,2571.8,2571.7,0.78182]
[1727034192272,1.51993094,2571.8,2571.7,0.78182]
[1727034192468,1.51996299,2571.8,2571.7,0.78182]
[1727034197664,1.51996299,2571.9,2571.7,0.78182]
[1727034197876,1.51996299,2571.9,2571.7,1.80159619]
[1727034199059,1.51996299,2571.9,2571.8,0.38881]
[1727034199262,1.51996299,2571.9,2571.7,1.80159619]
[1727034199763,1.51996299,2571.9,2571.7,1.80158619]
[1727034199969,1.51996299,2571.9,2571.7,0.78181]
[1727034200161,1.51996299,2571.9,2571.7,1.80158619]
[1727034200569,1.51996299,2571.9,2571.7,0.78181]
[1727034200866,1.51996299,2571.9,2571.7,1.80158619]
[1727034201069,1.51996299,2571.9,2571.8,0.76531]
[1727034201771,1.51996299,2571.9,2571.8,0.3765]
[1727034205671,1.51996299,2571.9,2571.8,1.74531]
[1727034205879,2.27906299,2572.0,2571.9,0.38879]
[1727034206276,0.7591,2572.0,2571.9,0.38879]
[1727034207467,1.51996299,2572.1,2571.9,0.38879]
[1727034207669,4.72776299,2572.2,2572.1,0.38876]
[1727034207874,3.2078,2572.2,2572.1,1.36876]
[1727034210669,3.5948,2572.2,2572.1,1.36876]
[1727034210871,3.5948,2572.2,2572.1,0.38876]
[1727034212081,0.387,2572.2,2572.1,0.38876]
[1727034212380,3.5948,2572.2,2572.1,0.38876]
[1727034213572,3.9923,2572.2,2572.1,0.38876]
[1727034215286,3.9923,2572.2,2572.1,0.78486]
[1727034215586,3.9923,2572.2,2572.1,1.16426]
[1727034216686,3.5948,2572.2,2572.1,1.16426]
[1727034217584,3.2078,2572.2,2572.1,2.14426]
[1727034217779,1.90996299,2572.4,2572.3,0.38873]
[1727034217982,0.39,2572.4,2572.3,0.38873]
[1727034218293,0.39,2572.4,2572.2,0.38874]
[1727034218685,0.39,2572.4,2572.3,0.38873]
[1727034219176,0.39,2572.4,2572.2,0.38874]
[1727034222180,0.39,2572.4,2572.2,0.38875]
[1727034222581,0.39,2572.4,2572.3,0.38873]
[1727034223286,2.02734183,2572.7,2572.6,0.38869]
[1727034223287,1.51996299,2572.7,2572.6,0.38869]
[1727034223482,1.92326299,2572.7,2572.6,0.38869]
[1727034223984,0.4033,2572.7,2572.6,0.38869]
[1727034224294,0.4033,2572.7,2572.5,1.75989]
[1727034224481,0.4033,2572.7,2572.6,0.38869]
[1727034226188,0.8039,2572.9,2572.7,0.38867]
[1727034226189,2.32386299,2572.9,2572.7,0.38867]
[1727034226382,2.72676299,2572.9,2572.8,1.3861]
[1727034226584,1.2068,2572.9,2572.8,1.77476]
[1727034226887,4.72776299,2573.1,2572.9,0.38864]
[1727034227078,5.13066299,2573.1,2572.9,1.75904]
[1727034227287,3.6107,2573.1,2572.9,1.75904]
[1727034227580,3.6107,2573.1,2573.0,0.38863]
[1727034227783,3.6107,2573.1,2572.9,1.75903]
[1727034227977,0.4029,2573.1,2572.9,1.75903]
[1727034228986,0.4029,2573.1,2573.0,0.38863]
[1727034229189,0.3673,2573.2,2573.1,0.38861]
[1727034229489,0.3673,2573.2,2573.1,1.36861]
[1727034229687,0.3673,2573.2,2573.1,0.98]
[1727034230386,0.3673,2573.2,2573.1,1.3696]
[1727034231983,0.3764,2573.3,2573.1,1.3696]
[1727034232183,0.3764,2573.3,2573.2,0.3886]
[1727034235493,0.3764,2573.3,2573.1,0.98]
[1727034235693,0.3764,2573.3,2573.1,1.36861]
[1727034235990,3.97278,2573.3,2573.0,1.36862]
[1727034236384,3.97278,2573.3,2573.1,0.38861]
[1727034236592,3.97278,2573.3,2573.0,1.36862]
[1727034236787,3.5842,2573.3,2573.1,0.38861]
[1727034237089,5.10416299,2573.3,2573.1,0.38861]
[1727034237292,0.3764,2573.3,2573.1,0.38861]
[1727034237493,3.5842,2573.3,2573.1,0.78651]
[1727034237687,3.97279,2573.3,2573.1,0.3979]
[1727034237894,0.76499,2573.3,2573.0,0.98]
[1727034238091,0.76499,2573.3,2573.1,0.38861]
[1727034240585,0.3886,2573.2,2573.0,0.98]
[1727034240796,0.4012,2573.1,2572.9,1.7683]
[1727034241202,0.3965,2573.0,2572.9,2.15693]
[1727034241500,0.3965,2573.0,2572.8,0.3903]
[1727034241501,4.38314,2573.0,2572.8,0.38865]
[1727034242586,0.38864,2572.9,2572.8,0.38865]
[1727034242986,4.38314,2573.0,2572.8,0.38865]
[1727034243496,4.38314,2573.0,2572.7,1.36866]
[1727034246200,4.38314,2573.0,2572.8,0.38866]
[1727034249399,0.38865,2572.9,2572.8,0.38866]
[1727034249603,0.38866,2572.8,2572.7,0.38867]
[1727034250104,4.9745,2573.0,2572.8,0.38866]
[1727034250105,0.38865,2572.9,2572.8,0.38866]
[1727034251105,4.38314,2573.0,2572.8,0.38866]
[1727034251611,0.38864,2572.9,2572.8,0.38866]
[1727034253514,0.38865,2572.9,2572.7,0.38866]
[1727034253698,0.38866,2572.8,2572.6,0.98]
[1727034253899,3.2078,2572.7,2572.6,1.36869]
[1727034254200,3.5865,2572.7,2572.6,1.36869]
[1727034257604,3.5865,2572.7,2572.6,0.98]
[1727034257797,3.97517,2572.7,2572.6,0.98]
[1727034260505,3.97517,2572.7,2572.6,1.36869]
[1727034261115,3.2078,2572.7,2572.6,1.36869]
[1727034261817,0.38866,2572.8,2572.7,0.38867]
[1727034261818,3.59646,2572.8,2572.7,0.38867]
[1727034262208,7.48366,2572.8,2572.7,0.38867]
[1727034263409,9.00362299,2572.8,2572.7,0.38867]
[1727034263609,7.095,2572.8,2572.6,0.98]
[1727034263813,5.11643299,2572.8,2572.7,0.38867]
[1727034264006,4.72776299,2572.8,2572.6,0.98]
[1727034264206,5.49133299,2572.8,2572.7,0.38867]
[1727034264810,9.37853299,2572.8,2572.7,0.38867]
[1727034265211,5.49133299,2572.8,2572.7,0.38867]
[1727034266109,5.49133299,2572.8,2572.7,0.76057]
[1727034267210,3.97137,2572.8,2572.7,0.76057]
[1727034267412,5.99871183,2572.8,2572.7,0.76057]
[1727034267706,5.99871183,2572.8,2572.7,0.3719]
[1727034270012,5.99871183,2572.8,2572.7,0.76057]
[1727034270013,3.5827,2572.8,2572.7,0.76057]
[1727034270209,3.5827,2572.8,2572.7,1.15107]
[1727034270612,5.99870183,2572.8,2572.7,1.15107]
[1727034270913,3.97136,2572.8,2572.7,1.15107]
[1727034271419,2.79090183,2572.8,2572.7,0.7624]
[1727034271612,0.76356,2572.8,2572.7,0.7624]
[1727034271911,2.79090183,2572.8,2572.7,0.7624]
[1727034272915,0.76356,2572.8,2572.7,0.7624]
[1727034273311,2.79090183,2572.8,2572.7,0.7624]
[1727034273505,2.79090183,2572.8,2572.7,1.15107]
[1727034274315,2.28505094,2572.8,2572.7,1.15107]
[1727034279312,0.76356,2572.8,2572.7,1.15107]
[1727034279514,0.76356,2572.8,2572.7,0.7624]
[1727034281519,2.79090183,2572.8,2572.7,0.7624]
[1727034281719,0.76356,2572.8,2572.7,0.7624]
[1727034282319,2.79090183,2572.8,2572.7,0.7624]
[1727034282516,5.99870183,2572.8,2572.7,0.7624]
[1727034284617,2.79090183,2572.8,2572.7,0.7624]
[1727034288218,0.76356,2572.8,2572.7,0.7624]
[1727034288423,2.79463235,2572.8,2572.7,0.7624]
[1727034289023,0.76356,2572.8,2572.7,0.7624]
[1727034289418,3.29421418,2572.8,2572.7,0.7624]
[1727034290029,0.38869,2572.6,2572.5,0.3887]